fUST/lending_fUST_20240919
["ID","MTS","AMOUNT","RATE_DAILY","PERIOD"]
[338521667,1726715303115,1094.12,0.00024,120]
[338521668,1726715303174,500.0,0.00024,120]
[338521669,1726715303425,1256.28,0.00024,120]
[338521670,1726715304624,500.0,0.00024,120]
[338521671,1726715305543,500.0,0.00024,120]
[338521672,1726715306068,657.95,0.00024,120]
[338521673,1726715306942,500.0,0.00024,120]
[338521674,1726715307447,510.23,0.00024,120]
[338521675,1726715307530,689.66,0.00024,120]
[338521676,1726715307637,392.0273195,0.00024,120]
[338521677,1726715308400,500.0,0.00024,120]
[338521678,1726715309168,1192.42,0.00024,120]
[338521679,1726715310336,1339.88,0.00024,120]
[338521680,1726715310397,500.0,0.00024,120]
[338521681,1726715313115,1014.8,0.00024,120]
[338521682,1726715313925,391.97875181,0.00024,120]
[338521683,1726715314061,500.0,0.00024,120]
[338521684,1726715315709,183.09001356,0.00024,120]
[338521685,1726715316908,500.0,0.00024,120]
[338521686,1726715317339,687.44,0.00024,120]
[338521687,1726715317423,500.0,0.00024,120]
[338521688,1726715317543,1036.23,0.00024,120]
[338521689,1726715318687,861.48,0.00024,120]
[338521690,1726715319771,500.0,0.00024,120]
[338521691,1726715320573,1161.98,0.00024,120]
[338521692,1726715321035,500.0,0.00024,120]
[338521693,1726715321091,1135.91,0.00024,120]
[338521694,1726715321285,500.0,0.00024,120]
[338521695,1726715321516,2875.58,0.00024,120]
[338521696,1726715321576,500.0,0.00024,120]
[338521697,1726715321693,826.14,0.00024,120]
[338521698,1726715321821,500.0,0.00024,120]
[338521699,1726715322084,500.0,0.00024,120]
[338521700,1726715322354,500.0,0.00024,120]
[338521701,1726715322636,500.0,0.00024,120]
[338521702,1726715322891,500.0,0.00024,120]
[338521703,1726715323142,500.0,0.00024,120]
[338521704,1726715323403,500.0,0.00024,120]
[338521705,1726715323671,500.0,0.00024,120]
[338521706,1726715323926,500.0,0.00024,120]
[338521707,1726715324186,500.0,0.00024,120]
[338521708,1726715324471,500.0,0.00024,120]
[338521709,1726715324761,500.0,0.00024,120]
[338521710,1726715325478,500.0,0.00024,120]
[338521711,1726715325566,412.88903852,0.00024,120]
[338521712,1726715326000,500.0,0.00024,120]
[338521713,1726715326862,536.92,0.00024,120]
[338521714,1726715327199,500.0,0.00024,120]
[338521715,1726715327252,500.0,0.00024,120]
[338521716,1726715327954,500.0,0.00024,120]
[338521717,1726715328220,500.0,0.00024,120]
[338521718,1726715329613,500.0,0.00024,120]
[338521719,1726715330000,500.0,0.00024,120]
[338521720,1726715331671,500.0,0.00024,120]
[338521721,1726715332411,500.0,0.00024,120]
[338521722,1726715333083,1030.58,0.00024,120]
[338521723,1726715334287,770.69,0.00024,120]
[338521724,1726715334353,5700.58,0.00024,120]
[338521725,1726715337389,1210.83,0.00024,120]
[338521726,1726715337676,1451.05,0.00024,120]
[338521727,1726715337812,945.04,0.00024,120]
[338521728,1726715337916,500.0,0.00024,120]
[338521729,1726715338245,1327.97,0.00024,120]
[338521730,1726715339799,500.0,0.00024,120]
[338521731,1726715341071,2356.36,0.00024,120]
[338521732,1726715341960,500.0,0.00024,120]
[338521735,1726715342871,500.0,0.00024,120]
[338521737,1726715344707,500.0,0.00024,120]
[338521738,1726715344999,500.0,0.00024,120]
[338521739,1726715346962,500.0,0.00024,120]
[338521740,1726715347885,714.85,0.00024,120]
[338521741,1726715348295,1435.0,0.00024,120]
[338521742,1726715350346,500.0,0.00024,120]
[338521743,1726715350934,500.0,0.00024,120]
[338521744,1726715351972,500.0,0.00024,120]
[338521745,1726715352531,500.0,0.00024,120]
[338521746,1726715352856,755.44,0.00024,120]
[338521747,1726715353207,480.71682681,0.00024,120]
[338521748,1726715353385,500.0,0.00024,120]
[338521749,1726715357405,-500.0,0.000145,2]
[338521750,1726715357427,-305.4635316,0.00015,2]
[338521751,1726715358096,533.49,0.00024,120]
[338521752,1726715358288,960.46,0.00024,120]
[338521753,1726715358388,826.6,0.00024,120]
[338521754,1726715361106,500.0,0.00024,120]
[338521755,1726715361321,500.0,0.00024,120]
[338521756,1726715361776,387.84739155,0.00024,120]
[338521757,1726715363401,500.0,0.00024,120]
[338521758,1726715363844,500.69588203,0.00024,120]
[338521759,1726715365313,1120.22,0.00024,120]
[338521760,1726715365498,2000.57,0.00024,120]
[338521761,1726715365899,500.15474823,0.00024,120]
[338521762,1726715366352,722.85,0.00024,120]
[338521763,1726715367225,1083.55,0.00024,120]
[338521768,1726715370680,500.67843393,0.00024,120]
[338521769,1726715370750,1036.58,0.00024,120]
[338521770,1726715371575,1064.61,0.00024,120]
[338521771,1726715371718,500.0,0.00024,120]
[338521772,1726715372842,500.0,0.00024,120]
[338521773,1726715373560,500.0,0.00024,120]
[338521774,1726715374029,500.0,0.00024,120]
[338521775,1726715374973,502.05656634,0.00024,120]
[338521776,1726715375828,1541.32,0.00024,120]
[338521777,1726715376157,1298.87,0.00024,120]
[338521778,1726715376219,573.48519528,0.00024,120]
[338521779,1726715376758,500.0,0.00024,120]
[338521780,1726715377135,500.0,0.00024,120]
[338521781,1726715378670,500.0,0.00024,120]
[338521782,1726715381077,13238.88,0.00024,120]
[338521783,1726715381294,500.0,0.00024,120]
[338521784,1726715381438,1020.94,0.00024,120]
[338521785,1726715382652,581.25,0.00024,120]
[338521786,1726715382733,500.0,0.00024,120]
[338521787,1726715383093,1049.83,0.00024,120]
[338521788,1726715384429,500.0,0.00024,120]
[338521789,1726715385572,813.21,0.00024,120]
[338521790,1726715385918,500.0,0.00024,120]
[338521791,1726715386390,500.0,0.00024,120]
[338521792,1726715386767,539.78,0.00024,120]
[338521793,1726715389152,594.89,0.00024,120]
[338521794,1726715389399,500.0,0.00024,120]
[338521795,1726715389455,508.07,0.00024,120]
[338521796,1726715389639,500.0,0.00024,120]
[338521797,1726715390309,892.73,0.00024,120]
[338521798,1726715392298,1049.29,0.00024,120]
[338521799,1726715393192,914.21,0.00024,120]
[338521800,1726715394181,835.62,0.00024,120]
[338521801,1726715394923,500.0,0.00024,120]
[338521802,1726715395225,500.0,0.00024,120]
[338521803,1726715395365,500.0,0.00024,120]
[338521804,1726715396175,1421.84,0.00024,120]
[338521805,1726715397968,1808.85,0.00024,120]
[338521806,1726715399674,1096.96,0.00024,120]
[338521807,1726715399776,500.0,0.00024,120]
[338521808,1726715401886,500.0,0.00024,120]
[338521809,1726715402744,538.18698696,0.00024,120]
[338521810,1726715403212,1035.74,0.00024,120]
[338521811,1726715403715,1080.42,0.00024,120]
[338521812,1726715404229,607.15,0.00024,120]
[338521813,1726715405296,646.3,0.00024,120]
[338521814,1726715405946,507.67401798,0.00024,120]
[338521815,1726715407258,1901.0,0.00024,120]
[338521816,1726715407501,500.0,0.00024,120]
[338521817,1726715407692,500.0,0.00024,120]
[338521818,1726715407852,526.22295185,0.00024,120]
[338521819,1726715408221,226.95359237,0.00024,120]
[338521820,1726715409513,1066.13,0.00024,120]
[338521821,1726715410004,500.0,0.00024,120]
[338521822,1726715412897,1307.65,0.00024,120]
[338521823,1726715413381,826.53,0.00024,120]
[338521824,1726715413655,1777.85,0.00024,120]
[338521825,1726715415370,500.0,0.00024,120]
[338521826,1726715416871,500.0,0.00024,120]
[338521827,1726715418922,500.0,0.00024,120]
[338521828,1726715419244,922.54,0.00024,120]
[338521829,1726715419695,500.0,0.00024,120]
[338521830,1726715419836,979.93,0.00024,120]
[338521831,1726715419974,2730.33,0.00024,120]
[338521832,1726715420506,1531.77,0.00024,120]
[338521833,1726715421601,382.86549839,0.00024,120]
[338521834,1726715421769,500.0,0.00024,120]
[338521835,1726715421853,620.0,0.00024,120]
[338521836,1726715422552,1041.67,0.00024,120]
[338521837,1726715423508,511.84661222,0.00024,120]
[338521838,1726715424469,500.0,0.00024,120]
[338521839,1726715425998,500.0,0.00024,120]
[338521840,1726715426617,1148.7,0.00024,120]
[338521841,1726715427150,1480.45,0.00024,120]
[338521842,1726715427305,1800.71,0.00024,120]
[338521843,1726715427693,4958.64,0.00024,120]
[338521844,1726715428101,666.25,0.00024,120]
[338521845,1726715428887,995.46,0.00024,120]
[338521846,1726715429709,1035.57,0.00024,120]
[338521847,1726715429911,500.0,0.00024,120]
[338521848,1726715430954,500.0,0.00024,120]
[338521849,1726715431111,624.51,0.00024,120]
[338521862,1726715432481,500.0,0.00024,120]
[338521873,1726715433148,530.6,0.00024,120]
[338521898,1726715434286,764.75,0.00024,120]
[338521899,1726715436674,1032.98,0.00024,120]
[338521900,1726715436973,769.22,0.00024,120]
[338521901,1726715437060,2068.83,0.00024,120]
[338521902,1726715437394,500.0,0.00024,120]
[338521903,1726715438045,1079.81,0.00024,120]
[338521915,1726715438971,-194.5364684,0.00015,2]
[338521917,1726715438980,-500.0,0.000155,2]
[338521919,1726715438990,-500.0,0.00016,2]
[338521921,1726715438999,-1807.9732357,0.00016987,2]
[338521923,1726715439008,-500.0,0.00017,2]
[338521925,1726715439024,-4385.36897513,0.00017665,2]
[338521927,1726715439034,-396.80632,0.00017808,2]
[338521929,1726715439043,-150.0,0.0001792,2]
[338521931,1726715439052,-300.0,0.00017999,2]
[338521933,1726715439062,-300.0,0.00017999,2]
[338521935,1726715439071,-3000.0,0.00018,2]
[338521937,1726715439081,-10960.0,0.00018,2]
[338521939,1726715439090,-500.0,0.00018,2]
[338521941,1726715439099,-500.0,0.00018145,2]
[338521943,1726715439108,-150.0,0.0001818,2]
[338521945,1726715439120,-150.0,0.00018523,2]
[338521947,1726715439130,-656.976807,0.00018645,2]
[338521949,1726715439139,-191.425281,0.00018655,2]
[338521951,1726715439149,-168.516455,0.00018655,2]
[338521953,1726715439159,-190.901548,0.00018655,2]
[338521955,1726715439168,-500.0,0.00018676,2]
[338521957,1726715439182,-673.2037511,0.00018767,2]
[338521959,1726715439192,-150.0,0.00018877,2]
[338521961,1726715439201,-3000.0,0.000189,2]
[338521963,1726715439211,-3000.0,0.0001891,2]
[338521965,1726715439222,-3000.0,0.0001892,2]
[338521967,1726715439231,-199.1,0.00018929,2]
[338521969,1726715439241,-199.0,0.0001893,2]
[338521971,1726715439250,-3000.0,0.0001893,2]
[338521973,1726715439260,-134.1034273,0.0001894,2]
[338522095,1726715440726,500.0,0.00024,120]
[338522101,1726715441609,-2865.8965727,0.0001894,2]
[338522102,1726715441621,-500.0,0.0001895,2]
[338522103,1726715441632,-3000.0,0.0001895,2]
[338522104,1726715441643,-4748.722156,0.0001896,2]
[338522105,1726715441655,-150.56,0.00018974,2]
[338522106,1726715441664,-150.0,0.00018979,2]
[338522107,1726715441675,-29024.7044024,0.00019,2]
[338522108,1726715441684,-199.1,0.00019001,2]
[338522109,1726715441694,-150.0,0.00019016,2]
[338522110,1726715441704,-150.0,0.00019016,2]
[338522111,1726715441717,-524.0,0.00019016,2]
[338522112,1726715441727,-1216.0,0.00019016,2]
[338522113,1726715441737,-1000.0,0.00019039,2]
[338522114,1726715441748,-1043.25772239,0.00019043,2]
[338522115,1726715441758,-6189.70895631,0.00019053,2]
[338522116,1726715441768,-199.1,0.00019074,2]
[338522117,1726715441777,-288.72,0.00019118,3]
[338522118,1726715441787,-866.18,0.00019118,3]
[338522119,1726715441796,-241.59984539,0.00019127,2]
[338522120,1726715441806,-500.0,0.00019127,2]
[338522121,1726715441815,-209.71835299,0.00019127,2]
[338522122,1726715441825,-500.0,0.00019127,2]
[338522123,1726715441835,-500.0,0.00019127,2]
[338522124,1726715441844,-335.00000003,0.00019127,2]
[338522125,1726715441854,-231.77795852,0.00019127,2]
[338522126,1726715441863,-500.0,0.00019127,2]
[338522127,1726715441872,-350.54920991,0.00019127,2]
[338522128,1726715441884,-500.0,0.00019127,2]
[338522129,1726715441894,-500.0,0.00019127,2]
[338522130,1726715441904,-500.0,0.00019127,2]
[338522131,1726715441913,-500.0,0.00019127,2]
[338522132,1726715441922,-157.23771833,0.00019128,2]
[338522133,1726715441932,-56841.27114747,0.00019129,3]
[338522134,1726715441944,-182918.55340751,0.00019129,3]
[338522135,1726715442491,500.0,0.00024,120]
[338522136,1726715442598,500.0,0.00024,120]
[338522138,1726715443427,554.33,0.00024,120]
[338522142,1726715443492,564.22,0.00024,120]
[338522145,1726715444036,-32859.71431402,0.00019129,3]
[338522146,1726715444047,-15444.8367225,0.00019129,3]
[338522147,1726715444056,-288.87433006,0.00019129,2]
[338522148,1726715444066,-500.0,0.00019129,2]
[338522150,1726715444076,-500.0,0.00019129,2]
[338522151,1726715444086,-500.0,0.00019129,2]
[338522152,1726715444095,-575.24532134,0.00019129,2]
[338522153,1726715444105,-162.36066278,0.00019129,2]
[338522154,1726715444114,-575.24532134,0.00019129,2]
[338522155,1726715444123,-502.19561349,0.00019129,2]
[338522156,1726715444134,-302.81861559,0.00019129,2]
[338522157,1726715444143,-575.24532134,0.00019129,2]
[338522158,1726715444153,-500.0,0.00019129,2]
[338522159,1726715444162,-575.24532134,0.00019129,2]
[338522160,1726715444172,-500.0,0.00019129,2]
[338522161,1726715444182,-575.24532134,0.00019129,2]
[338522162,1726715444192,-500.0,0.00019129,2]
[338522163,1726715444201,-575.24532134,0.00019129,2]
[338522164,1726715444211,-575.24532134,0.00019129,2]
[338522165,1726715444221,-575.24532134,0.00019129,2]
[338522166,1726715444231,-575.24532134,0.00019129,2]
[338522167,1726715444240,-575.24532134,0.00019129,2]
[338522168,1726715444250,-30295.98497002,0.0001913,3]
[338522173,1726715445022,500.0,0.00024,120]
[338522174,1726715445137,500.0,0.00024,120]
[338522175,1726715445719,801.95,0.00024,120]
[338522176,1726715445879,727.61,0.00024,120]
[338522177,1726715446106,1027.28,0.00024,120]
[338522178,1726715446726,500.0,0.00024,120]
[338522183,1726715447087,-37858.89974718,0.0001913,3]
[338522184,1726715447099,-3861.20918063,0.0001913,3]
[338522185,1726715447109,-19306.0459031,0.00019131,3]
[338522186,1726715447321,-3009.36600001,0.00019134,3]
[338522187,1726715447338,-851.84318062,0.00019134,3]
[338522188,1726715447350,-3861.20918063,0.00019136,3]
[338522189,1726715447360,-3861.20918063,0.00019137,3]
[338522190,1726715447370,-151.0,0.00019144,2]
[338522191,1726715447380,-151.0,0.00019144,2]
[338522192,1726715447391,-151.0,0.00019144,2]
[338522193,1726715447401,-530.915036,0.00019144,2]
[338522194,1726715447411,-151.0,0.00019144,2]
[338522195,1726715447423,-151.0,0.00019144,2]
[338522196,1726715447434,-151.0,0.00019144,2]
[338522197,1726715447444,-530.915036,0.00019144,2]
[338522198,1726715447454,-156.986283,0.00019144,2]
[338522199,1726715447464,-151.0,0.00019144,2]
[338522200,1726715447473,-406.391899,0.00019144,2]
[338522201,1726715447484,-406.391899,0.00019144,2]
[338522202,1726715447495,-199.1,0.00019146,2]
[338522203,1726715447505,-151.0,0.00019147,2]
[338522204,1726715447515,-151.0,0.00019147,2]
[338522205,1726715447526,-213.346863,0.00019147,2]
[338522206,1726715447536,-584.217153,0.00019147,2]
[338522207,1726715447547,-584.217153,0.00019147,2]
[338522208,1726715447557,-151.0,0.00019147,2]
[338522209,1726715447567,-366.282264,0.00019147,2]
[338522210,1726715447577,-366.282264,0.00019147,2]
[338522211,1726715447586,-151.0,0.00019147,2]
[338522212,1726715447598,-151.0,0.00019147,2]
[338522213,1726715447609,-151.0,0.00019147,2]
[338522214,1726715447618,-171.618067,0.00019147,2]
[338522215,1726715447629,-171.618067,0.00019147,2]
[338522216,1726715447640,-151.0,0.00019147,2]
[338522217,1726715447649,-151.0,0.00019147,2]
[338522218,1726715447659,-151.0,0.00019151,2]
[338522219,1726715447669,-216.79136,0.00019151,2]
[338522220,1726715447679,-151.0,0.00019151,2]
[338522221,1726715447688,-151.0,0.00019151,2]
[338522222,1726715447699,-151.0,0.00019151,2]
[338522223,1726715447709,-151.0,0.00019151,2]
[338522224,1726715447721,-151.0,0.00019151,2]
[338522225,1726715447731,-227.325695,0.00019151,2]
[338522226,1726715447742,-530.915036,0.00019151,2]
[338522227,1726715447753,-151.0,0.00019151,2]
[338522228,1726715447764,-530.915036,0.00019151,2]
[338522229,1726715447773,-151.0,0.00019151,2]
[338522230,1726715447782,-406.391899,0.00019151,2]
[338522231,1726715447791,-406.391899,0.00019151,2]
[338522232,1726715447801,-3861.20918063,0.00019163,3]
[338522233,1726715447810,-151.0,0.00019168,2]
[338522234,1726715447820,-151.0,0.00019168,2]
[338522235,1726715447829,-151.0,0.00019168,2]
[338522236,1726715447839,-11583.6275419,0.00019168,3]
[338522237,1726715447850,-500.0,0.00019173,2]
[338522238,1726715447860,-500.0,0.00019173,2]
[338522239,1726715447869,-500.0,0.00019173,2]
[338522240,1726715447878,-500.0,0.00019173,2]
[338522241,1726715447891,-500.0,0.00019173,2]
[338522242,1726715447900,-500.0,0.00019173,2]
[338522243,1726715447911,-500.0,0.00019173,2]
[338522244,1726715447922,-500.0,0.00019173,2]
[338522245,1726715447932,-500.0,0.00019173,2]
[338522246,1726715447941,-500.0,0.00019173,2]
[338522247,1726715447951,-151.0,0.00019173,2]
[338522248,1726715447960,-216.79136,0.00019173,2]
[338522249,1726715447970,-151.0,0.00019173,2]
[338522250,1726715447980,-151.0,0.00019173,2]
[338522251,1726715447990,-150.01,0.00019176,2]
[338522252,1726715448000,-3519.84187927,0.00019176,2]
[338522253,1726715448011,-17460.67352017,0.00019177,2]
[338522254,1726715448122,500.0,0.00024,120]
[338522255,1726715448231,1410.85,0.00024,120]
[338522256,1726715452004,2492.04,0.00024,120]
[338522257,1726715452074,500.0,0.00024,120]
[338522258,1726715452254,500.0,0.00024,120]
[338522259,1726715452316,500.0,0.00024,120]
[338522260,1726715452946,500.0,0.00024,120]
[338522261,1726715453041,500.0,0.00024,120]
[338522262,1726715453133,500.0,0.00024,120]
[338522263,1726715455151,1032.67,0.00024,120]
[338522264,1726715455480,223.62565307,0.00024,120]
[338522265,1726715457110,500.0,0.00024,120]
[338522266,1726715457792,500.0,0.00024,120]
[338522267,1726715457998,1050.14,0.00024,120]
[338522268,1726715458267,597.62,0.00024,120]
[338522269,1726715458326,500.0,0.00024,120]
[338522270,1726715458388,1128.49,0.00024,120]
[338522271,1726715459753,508.96,0.00024,120]
[338522272,1726715460139,1053.35,0.00024,120]
[338522273,1726715460545,1616.96,0.00024,120]
[338522274,1726715462258,1035.72,0.00024,120]
[338522275,1726715462458,621.03,0.00024,120]
[338522276,1726715462633,500.0,0.00024,120]
[338522277,1726715464376,604.46,0.00024,120]
[338522278,1726715464636,604.46,0.00024,120]
[338522279,1726715464886,604.46,0.00024,120]
[338522280,1726715465154,604.46,0.00024,120]
[338522281,1726715465341,500.0,0.00024,120]
[338522282,1726715465415,604.46,0.00024,120]
[338522283,1726715465643,500.0,0.00024,120]
[338522284,1726715465717,604.46,0.00024,120]
[338522285,1726715466312,604.46,0.00024,120]
[338522286,1726715466579,604.46,0.00024,120]
[338522287,1726715466841,604.46,0.00024,120]
[338522288,1726715467138,604.46,0.00024,120]
[338522289,1726715467398,604.46,0.00024,120]
[338522290,1726715467666,500.0,0.00024,120]
[338522291,1726715467726,604.46,0.00024,120]
[338522292,1726715467953,604.46,0.00024,120]
[338522293,1726715468211,604.46,0.00024,120]
[338522294,1726715468341,500.0,0.00024,120]
[338522295,1726715469011,500.0,0.00024,120]
[338522296,1726715469167,1259.93,0.00024,120]
[338522297,1726715469233,1086.68,0.00024,120]
[338522298,1726715469492,1086.68,0.00024,120]
[338522299,1726715469749,1086.68,0.00024,120]
[338522300,1726715470035,1086.68,0.00024,120]
[338522301,1726715470296,1086.68,0.00024,120]
[338522302,1726715470530,1086.68,0.00024,120]
[338522303,1726715470811,1086.68,0.00024,120]
[338522304,1726715471137,1086.68,0.00024,120]
[338522305,1726715471248,1288.01,0.00024,120]
[338522306,1726715471385,1086.68,0.00024,120]
[338522307,1726715471456,604.46,0.00024,120]
[338522308,1726715471641,1086.68,0.00024,120]
[338522309,1726715471745,604.46,0.00024,120]
[338522310,1726715471918,1086.68,0.00024,120]
[338522311,1726715471998,604.46,0.00024,120]
[338522312,1726715472608,1086.68,0.00024,120]
[338522313,1726715472687,604.46,0.00024,120]
[338522314,1726715472789,604.46,0.00024,120]
[338522315,1726715472887,1086.68,0.00024,120]
[338522316,1726715472946,604.46,0.00024,120]
[338522317,1726715473030,1086.68,0.00024,120]
[338522318,1726715473087,604.46,0.00024,120]
[338522319,1726715473247,1086.68,0.00024,120]
[338522320,1726715473309,604.46,0.00024,120]
[338522321,1726715473503,1086.68,0.00024,120]
[338522322,1726715473578,604.46,0.00024,120]
[338522323,1726715473780,1086.68,0.00024,120]
[338522324,1726715473850,604.65078733,0.00024,120]
[338522325,1726715474091,1086.68,0.00024,120]
[338522326,1726715474330,1086.68,0.00024,120]
[338522327,1726715474605,1086.68,0.00024,120]
[338522328,1726715474966,1086.68,0.00024,120]
[338522329,1726715475252,1086.68,0.00024,120]
[338522330,1726715475664,1086.68,0.00024,120]
[338522331,1726715475831,1086.83743814,0.00024,120]
[338522332,1726715479920,1129.87,0.00024,120]
[338522333,1726715480011,500.0,0.00024,120]
[338522334,1726715480350,973.86,0.00024,120]
[338522335,1726715481520,617.81,0.00024,120]
[338522336,1726715481578,263.17858401,0.00024,120]
[338522337,1726715483027,174.5664874,0.00024,120]
[338522338,1726715483610,500.0,0.00024,120]
[338522339,1726715483871,702.58,0.00024,120]
[338522340,1726715484822,500.0,0.00024,120]
[338522341,1726715487887,500.0,0.00024,120]
[338522342,1726715488806,655.47,0.00024,120]
[338522343,1726715489635,532.79913949,0.00024,120]
[338522344,1726715490359,944.09,0.00024,120]
[338522345,1726715490548,1010.44,0.00024,120]
[338522346,1726715490626,944.09,0.00024,120]
[338522347,1726715490797,1010.44,0.00024,120]
[338522348,1726715490879,944.09,0.00024,120]
[338522349,1726715491049,1010.44,0.00024,120]
[338522350,1726715491187,944.09,0.00024,120]
[338522351,1726715491304,1010.44,0.00024,120]
[338522352,1726715491391,500.0,0.00024,120]
[338522353,1726715491478,944.09,0.00024,120]
[338522354,1726715491587,1010.44,0.00024,120]
[338522355,1726715491668,500.0,0.00024,120]
[338522356,1726715492039,944.09,0.00024,120]
[338522357,1726715492109,1010.44,0.00024,120]
[338522358,1726715492183,500.0,0.00024,120]
[338522359,1726715492259,944.09,0.00024,120]
[338522360,1726715492322,500.0,0.00024,120]
[338522361,1726715492391,1010.44,0.00024,120]
[338522362,1726715492513,500.0,0.00024,120]
[338522363,1726715492594,500.0,0.00024,120]
[338522364,1726715492666,944.09,0.00024,120]
[338522365,1726715492757,1010.44,0.00024,120]
[338522366,1726715492822,500.0,0.00024,120]
[338522367,1726715492888,1319.12,0.00024,120]
[338522368,1726715492953,944.09,0.00024,120]
[338522369,1726715493438,500.0,0.00024,120]
[338522370,1726715493515,500.0,0.00024,120]
[338522371,1726715493584,944.09,0.00024,120]
[338522372,1726715493668,500.0,0.00024,120]
[338522373,1726715493944,500.0,0.00024,120]
[338522374,1726715494037,1010.44,0.00024,120]
[338522375,1726715494103,500.0,0.00024,120]
[338522376,1726715494190,944.09,0.00024,120]
[338522377,1726715494263,1010.44,0.00024,120]
[338522378,1726715494327,500.0,0.00024,120]
[338522379,1726715494396,944.09,0.00024,120]
[338522380,1726715494466,500.0,0.00024,120]
[338522381,1726715494539,944.09,0.00024,120]
[338522382,1726715494611,598.29114742,0.00024,120]
[338522383,1726715494690,500.0,0.00024,120]
[338522384,1726715494752,944.09,0.00024,120]
[338522385,1726715494848,632.6633779,0.00024,120]
[338522386,1726715494917,1010.44,0.00024,120]
[338522387,1726715494985,944.09,0.00024,120]
[338522388,1726715495070,944.09,0.00024,120]
[338522389,1726715495135,1010.44,0.00024,120]
[338522390,1726715495212,944.09,0.00024,120]
[338522391,1726715495281,1010.44,0.00024,120]
[338522392,1726715495362,944.09,0.00024,120]
[338522393,1726715495434,1010.44,0.00024,120]
[338522394,1726715495532,944.09,0.00024,120]
[338522395,1726715495677,1010.44,0.00024,120]
[338522396,1726715495787,944.09,0.00024,120]
[338522397,1726715495889,1010.44,0.00024,120]
[338522398,1726715496038,944.09,0.00024,120]
[338522399,1726715496128,1334.67,0.00024,120]
[338522400,1726715496200,1010.44,0.00024,120]